[Event "RUS-ch Rapid Women 2021"]
[White "Semenova,Elena"]
[Black "Chernyak,Viktoria"]
[Site "Sochi"]
[Round "2.3"]
[Annotator "NA"]
[Result "0-1"]
[Date "2021.10.12"]
[WhiteElo "2233"]
[BlackElo "2285"]
[PlyCount "88"]
[TimeControl "5400+30"]

1. e4 {[%emt 1:15:42]} c6 {[%emt 1:15:41]} 2. d4 {[%emt 0:0:25]} d5 {[%emt 0:0:0]} 3. Nc3 {[%emt 0:0:36]} dxe4 {[%emt 0:0:22]} 4. Nxe4 {[%emt 0:0:21]} Nf6 {[%emt 0:0:22]} 5. Nxf6+ {[%emt 0:0:52]} exf6 {[%emt 0:0:21]} 6. c3 {[%emt 0:0:23]
} Bd6 {[%emt 0:0:22]} 7. Bd3 {[%emt 0:0:22]} 0-0 {[%emt 0:0:0]} 8. Ne2 {[%emt 0:0:21]} Re8 {[%emt 0:0:21]} 9. Qc2 {[%emt 0:0:30]} h5 {[%emt 0:0:27]
} 10. Be3 {[%emt 0:0:39]} Qa5 {[%emt 0:2:33]} 11. 0-0 {[%emt 0:0:0]} Nd7 {[%emt 0:0:57]} 12. Rfe1 {[%emt 0:0:48]} Nf8 {[%emt 0:0:38]} 13. h3 {[%emt 0:0:54]} h4 {[%emt 0:2:57]} 14. c4 {[%emt 0:1:20]} Be6 {[%emt 0:0:0]} 15. a3 {[%emt 0:1:21]} Rad8 {[%emt 0:0:40]} 16. Rad1 {[%emt 0:0:50]} Bb8 {[%emt 0:0:30]} 17. b4 {[%emt 0:1:42]} Qxa3 {[%emt 0:1:1]} 18. Qd2 {[%emt 0:4:21]
} Bd6 {[%emt 0:2:18]} 19. c5 {[%emt 0:1:44]} Bb8 {[%emt 0:0:0]} 20. Ra1 {[%emt 0:0:45]} Qb3 {[%emt 0:0:31]} 21. Nc3 {[%emt 0:0:37]} Bc8 {[%emt 0:0:59]} 22. Rab1 {[%emt 0:0:37]} Qe6 {[%emt 0:0:30]} 23. b5 {[%emt 0:1:9]
} Bc7 {[%emt 0:2:6]} 24. Qc2 {[%emt 0:0:51]} f5 {[%emt 0:0:0]} 25. Ne2 {[%emt 0:1:29]} Qf6 {[%emt 0:1:0]} 26. Qd2 {[%emt 0:1:2]} Ne6 {[%emt 0:0:43]} 27. Nf4 {[%emt 0:1:3]} Bxf4 {[%emt 0:0:44]} 28. Bxf4 {[%emt 0:0:21]
} Qxd4 {[%emt 0:0:22]} 29. Bd6 {[%emt 0:0:47]} Nxc5 {[%emt 0:0:0]} 30. Bxc5 {[%emt 0:0:26]} Qxc5 {[%emt 0:0:28]} 31. Qg5 {[%emt 0:0:30]
} Be6 {[%emt 0:1:18]} 32. bxc6 {[%emt 0:0:39]} Rxd3 {[%emt 0:0:57]} 33. cxb7 {[%emt 0:0:21]} Rb8 {[%emt 0:1:21]} 34. Red1 {[%emt 0:0:36]} Rxd1+ {[%emt 0:0:0]} 35. Rxd1 {[%emt 0:0:22]} f6 {[%emt 0:0:20]} 36. Qf4 {[%emt 0:0:41]} Rxb7 {[%emt 0:0:27]} 37. Rd8+ {[%emt 0:0:21]} Kf7 {[%emt 0:0:23]} 38. Qd2 {[%emt 0:0:41]
} Rb1+ {[%emt 0:0:33]} 39. Kh2 {[%emt 0:0:20]} Qc7+ {[%emt 0:0:0]} 40. f4 {[%emt 0:0:25]} a5 {[%emt 0:1:4]} 41. Rd4 {[%emt 0:0:20]} Rb4 {[%emt 0:0:29]} 42. Rxb4 {[%emt 0:0:28]} axb4 {[%emt 0:0:20]} 43. Qxb4 {[%emt 0:0:20]
} g5 {[%emt 0:0:29]} 44. Kg1 {[%emt 0:0:21]} Qc1+ {[%emt 0:0:0]} 0-1

[Event "RUS-ch Rapid Women 2021"]
[White "Potapova,Margarita"]
[Black "Yakimova,Mariya"]
[Site "Sochi"]
[Round "2.4"]
[Annotator "ChessBase"]
[Result "0-1"]
[Date "2021.10.12"]
[WhiteElo "2257"]
[BlackElo "2219"]
[PlyCount "130"]
[TimeControl "5400+30"]

1. d4 {[%emt 1:15:43]} Nf6 {[%emt 1:15:41]} 2. c4 {[%emt 0:0:22]} g6 {[%emt 0:0:0]} 3. Nc3 {[%emt 0:0:22]} Bg7 {[%emt 0:0:21]} 4. e4 {[%emt 0:0:21]} d6 {[%emt 0:0:22]} 5. h3 {[%emt 0:0:22]} 0-0 {[%emt 0:0:28]} 6. Be3 {[%emt 0:0:0]} e5 {[%emt 0:0:42]} 7. d5 {[%emt 0:0:23]} Na6 {[%emt 0:3:20]} 8. g4 {[%emt 0:0:23]
} Nc5 {[%emt 0:0:30]} 9. f3 {[%emt 0:0:26]} a5 {[%emt 0:0:36]} 10. Nge2 {[%emt 0:0:24]} c6 {[%emt 0:0:23]} 11. Nc1 {[%emt 0:2:1]} a4 {[%emt 0:0:44]
} 12. Nd3 {[%emt 0:0:29]} Nfd7 {[%emt 0:1:21]} 13. Qd2 {[%emt 0:1:8]
} Nxd3+ {[%emt 0:4:28]} 14. Bxd3 {[%emt 0:0:25]} Nc5 {[%emt 0:0:0]} 15. Bc2 {[%emt 0:1:27]} Qa5 {[%emt 0:0:52]} 16. Bxc5 {[%emt 0:5:18]} Qxc5 {[%emt 0:3:34]} 17. Nxa4 {[%emt 0:0:27]} Qa7 {[%emt 0:0:25]} 18. Nc3 {[%emt 0:1:1]
} b5 {[%emt 0:2:58]} 19. dxc6 {[%emt 0:1:31]} bxc4 {[%emt 0:0:0]} 20. 0-0-0 {[%emt 0:1:7]} Be6 {[%emt 0:0:45]} 21. Qxd6 {[%emt 0:0:50]} Rab8 {[%emt 0:1:17]} 22. Rhe1 {[%emt 0:4:9]} Qa5 {[%emt 0:0:53]} 23. g5 {[%emt 0:1:0]
} Rfc8 {[%emt 0:0:28]} 24. Ba4 {[%emt 0:0:35]} Bf8 {[%emt 0:0:0]} 25. Qd2 {[%emt 0:0:48]} Bb4 {[%emt 0:0:23]} 26. Bc2 {[%emt 0:0:48]} Ba3 {[%emt 0:0:53]} 27. Na4 {[%emt 0:0:36]} c3 {[%emt 0:0:23]} 28. Qxc3 {[%emt 0:1:26]
} Bxb2+ {[%emt 0:0:25]} 29. Qxb2 {[%emt 0:0:25]} Rxb2 {[%emt 0:0:0]} 30. Kxb2 {[%emt 0:0:35]} Rxc6 {[%emt 0:0:29]} 31. Bb3 {[%emt 0:0:21]
} Qb4 {[%emt 0:0:53]} 32. Re2 {[%emt 0:0:43]} Ra6 {[%emt 0:0:32]} 33. Nc3 {[%emt 0:0:27]
} Qa3+ {[%emt 0:0:34]} 34. Kc2 {[%emt 0:0:24]} Bxb3+ {[%emt 0:0:0]} 35. axb3 {[%emt 0:0:21]} Rc6 {[%emt 0:0:20]} 36. Rd3 {[%emt 0:0:49]} Qa2+ {[%emt 0:0:33]} 37. Kd1 {[%emt 0:0:20]} Qxb3+ {[%emt 0:0:31]} 38. Rc2 {[%emt 0:0:22]
} Qb6 {[%emt 0:0:35]} 39. Rg2 {[%emt 0:0:46]} Qa6 {[%emt 0:0:0]} 40. Kd2 {[%emt 0:0:25]} Rb6 {[%emt 0:0:30]} 41. Ke3 {[%emt 0:0:24]} Qa7 {[%emt 0:0:28]} 42. Rgd2 {[%emt 0:0:41]} Rb2+ {[%emt 0:0:38]} 43. Ke2 {[%emt 0:0:22]
} Rxd2+ {[%emt 0:0:22]} 44. Kxd2 {[%emt 0:0:25]} Qg1 {[%emt 0:0:0]} 45. Rd5 {[%emt 0:0:45]} Qxg5+ {[%emt 0:0:25]} 46. Ke2 {[%emt 0:0:22]
} Qg2+ {[%emt 0:0:31]} 47. Ke3 {[%emt 0:0:21]} Qg1+ {[%emt 0:0:28]} 48. Ke2 {[%emt 0:0:24]} Kg7 {[%emt 0:0:26]} 49. h4 {[%emt 0:0:45]} Qh2+ {[%emt 0:0:0]} 50. Ke3 {[%emt 0:0:37]} Qf4+ {[%emt 0:0:24]} 51. Ke2 {[%emt 0:0:23]} Qxh4 {[%emt 0:0:22]} 52. Nb5 {[%emt 0:0:25]} Qh2+ {[%emt 0:0:31]} 53. Ke3 {[%emt 0:0:27]
} h5 {[%emt 0:0:51]} 54. Nd6 {[%emt 0:0:45]} Qg1+ {[%emt 0:0:0]} 55. Ke2 {[%emt 0:0:30]} Qg2+ {[%emt 0:0:27]} 56. Ke3 {[%emt 0:0:23]} Qg1+ {[%emt 0:0:46]} 57. Ke2 {[%emt 0:0:22]} Qh2+ {[%emt 0:0:26]} 58. Ke3 {[%emt 0:0:26]
} h4 {[%emt 0:0:23]} 59. Ne8+ {[%emt 0:0:36]} Kf8 {[%emt 0:0:0]} 60. Nd6 {[%emt 0:0:33]} h3 {[%emt 0:0:23]} 61. Rd2 {[%emt 0:0:22]} Qg1+ {[%emt 0:0:26]} 62. Kd3 {[%emt 0:0:30]} Qd4+ {[%emt 0:0:26]} 63. Ke2 {[%emt 0:0:21]
} Qxd2+ {[%emt 0:0:27]} 64. Kxd2 {[%emt 0:0:21]} h2 {[%emt 0:0:0]} 65. Nc4 {[%emt 0:0:35]} h1=Q {[%emt 0:0:25]} 0-1

[Event "RUS-ch Rapid Women 2021"]
[White "Nasybullina,Alfia"]
[Black "Vasilevich,Tatjana"]
[Site "Sochi"]
[Round "2.5"]
[Annotator "NA"]
[Result "1/2-1/2"]
[Date "2021.10.12"]
[WhiteElo "2101"]
[BlackElo "2326"]
[PlyCount "43"]
[TimeControl "5400+30"]

1. d4 {[%emt 1:15:41]} Nf6 {[%emt 1:15:41]} 2. Nf3 {[%emt 0:0:23]} e6 {[%emt 0:0:25]
} 3. Bg5 {[%emt 0:0:23]} d5 {[%emt 0:0:25]} 4. Nbd2 {[%emt 0:0:0]} Be7 {[%emt 0:0:38]} 5. Bxf6 {[%emt 0:0:36]} Bxf6 {[%emt 0:0:23]} 6. e4 {[%emt 0:0:21]} 0-0 {[%emt 0:0:56]} 7. c3 {[%emt 0:1:9]} b6 {[%emt 0:0:0]} 8. Bd3 {[%emt 0:0:26]} c5 {[%emt 0:0:29]} 9. 0-0 {[%emt 0:0:46]} Ba6 {[%emt 0:0:29]
} 10. Bxa6 {[%emt 0:0:30]} Nxa6 {[%emt 0:0:21]} 11. Qe2 {[%emt 0:0:22]
} Qc8 {[%emt 0:1:1]} 12. exd5 {[%emt 0:2:3]} exd5 {[%emt 0:0:0]} 13. Ne5 {[%emt 0:0:30]} Re8 {[%emt 0:3:13]} 14. Ndf3 {[%emt 0:0:35]} Nc7 {[%emt 0:0:46]} 15. Qd3 {[%emt 0:1:6]} c4 {[%emt 0:1:13]} 16. Qc2 {[%emt 0:0:31]
} Ne6 {[%emt 0:0:45]} 17. Ng4 {[%emt 0:2:52]} Be7 {[%emt 0:0:0]} 18. Qf5 {[%emt 0:1:17]} Nc7 {[%emt 0:1:5]} 19. Qf4 {[%emt 0:1:2]} Ne6 {[%emt 0:1:35]} 20. Qf5 {[%emt 0:0:23]} Nc7 {[%emt 0:0:23]} 21. Qf4 {[%emt 0:0:53]
} Ne6 {[%emt 0:0:44]} 22. Qf5 {[%emt 0:1:17]} 1/2-1/2

[Event "RUS-ch Rapid Women 2021"]
[White "Nasyrova,Ekaterina"]
[Black "Sukhareva,Evgeniya"]
[Site "Sochi"]
[Round "2.6"]
[Annotator "NA"]
[Result "1-0"]
[Date "2021.10.12"]
[WhiteElo "2091"]
[BlackElo "2143"]
[PlyCount "93"]
[TimeControl "5400+30"]

1. d4 {[%emt 1:15:43]} Nf6 {[%emt 1:15:41]} 2. c4 {[%emt 0:0:21]} e6 {[%emt 0:0:0]} 3. Nc3 {[%emt 0:0:21]} c5 {[%emt 0:0:21]} 4. d5 {[%emt 0:0:22]} exd5 {[%emt 0:0:22]} 5. cxd5 {[%emt 0:0:23]} d6 {[%emt 0:0:21]} 6. e4 {[%emt 0:0:0]} a6 {[%emt 0:0:21]} 7. a4 {[%emt 0:0:23]} g6 {[%emt 0:0:21]} 8. g3 {[%emt 0:0:22]
} Bg7 {[%emt 0:0:22]} 9. Bg2 {[%emt 0:0:21]} 0-0 {[%emt 0:0:0]} 10. Nf3 {[%emt 0:0:23]} Qe7 {[%emt 0:1:15]} 11. 0-0 {[%emt 0:3:7]} Bg4 {[%emt 0:0:42]} 12. h3 {[%emt 0:0:25]} Bxf3 {[%emt 0:0:22]} 13. Bxf3 {[%emt 0:0:23]
} Nbd7 {[%emt 0:0:25]} 14. Bg2 {[%emt 0:0:48]} Rab8 {[%emt 0:0:0]} 15. a5 {[%emt 0:0:25]} Ne8 {[%emt 0:1:19]} 16. Re1 {[%emt 0:0:55]} b5 {[%emt 0:1:25]} 17. axb6 {[%emt 0:1:13]} Rxb6 {[%emt 0:0:24]} 18. Qe2 {[%emt 0:0:31]
} Nc7 {[%emt 0:0:28]} 19. Kh2 {[%emt 0:2:3]} Re8 {[%emt 0:0:0]} 20. Ra2 {[%emt 0:2:5]} Rb4 {[%emt 0:3:21]} 21. Bd2 {[%emt 0:0:43]} h5 {[%emt 0:0:38]} 22. Nd1 {[%emt 0:5:35]} Rd4 {[%emt 0:0:48]} 23. Ne3 {[%emt 0:0:29]
} h4 {[%emt 0:1:17]} 24. Bc3 {[%emt 0:0:36]} hxg3+ {[%emt 0:0:0]} 25. fxg3 {[%emt 0:0:23]} Rxe4 {[%emt 0:1:23]} 26. Bxe4 {[%emt 0:0:33]} Qxe4 {[%emt 0:0:30]} 27. Bxg7 {[%emt 0:0:35]} Kxg7 {[%emt 0:0:23]} 28. Qf2 {[%emt 0:0:35]
} Ne5 {[%emt 0:2:22]} 29. Rf1 {[%emt 0:0:26]} f5 {[%emt 0:0:0]} 30. Ng2 {[%emt 0:2:14]} Qxd5 {[%emt 0:2:44]} 31. Ra3 {[%emt 0:1:14]} Qc6 {[%emt 0:0:57]} 32. Nh4 {[%emt 0:1:28]} Rf8 {[%emt 0:1:29]} 33. Qf4 {[%emt 0:0:51]
} Nb5 {[%emt 0:0:27]} 34. Re3 {[%emt 0:0:22]} Nd4 {[%emt 0:0:0]} 35. b4 {[%emt 0:0:38]} Qd5 {[%emt 0:0:36]} 36. bxc5 {[%emt 0:0:21]} Ne6 {[%emt 0:0:26]} 37. Qa4 {[%emt 0:0:29]} Nxc5 {[%emt 0:0:23]} 38. Qa5 {[%emt 0:0:23]
} Rf7 {[%emt 0:0:31]} 39. Qa1 {[%emt 0:0:30]} Qd2+ {[%emt 0:0:0]} 40. Ng2 {[%emt 0:0:22]} Kg8 {[%emt 0:0:30]} 41. Rxe5 {[%emt 0:0:35]} dxe5 {[%emt 0:0:26]} 42. Qxe5 {[%emt 0:0:22]} Ne4 {[%emt 0:0:36]} 43. Qe8+ {[%emt 0:0:26]
} Kg7 {[%emt 0:0:22]} 44. Qe5+ {[%emt 0:0:32]} Kh7 {[%emt 0:0:0]} 45. Rf4 {[%emt 0:0:39]} Nf6 {[%emt 0:0:48]} 46. Rd4 {[%emt 0:0:30]} Qb2 {[%emt 0:0:34]} 47. Rh4+ {[%emt 0:0:24]} 1-0

[Event "RUS-ch Rapid Women 2021"]
[White "Goltseva,Ekaterina"]
[Black "Dimitrova,Aleksandra"]
[Site "Sochi"]
[Round "3.1"]
[Annotator "NA"]
[Result "1-0"]
[Date "2021.10.12"]
[WhiteElo "2304"]
[BlackElo "2197"]
[PlyCount "55"]
[TimeControl "5400+30"]

1. d4 {[%emt 1:15:41]} Nf6 {[%emt 1:15:41]} 2. c4 {[%emt 0:0:23]} e6 {[%emt 0:0:0]} 3. g3 {[%emt 0:0:34]} d5 {[%emt 0:0:21]} 4. Nf3 {[%emt 0:0:25]} Be7 {[%emt 0:0:24]} 5. Bg2 {[%emt 0:0:25]} 0-0 {[%emt 0:0:22]} 6. 0-0 {[%emt 0:0:0]} dxc4 {[%emt 0:0:23]} 7. Qc2 {[%emt 0:0:25]} b6 {[%emt 0:0:22]} 8. Ne5 {[%emt 0:1:54]} Qxd4 {[%emt 0:0:26]} 9. Bxa8 {[%emt 0:2:20]} Qxe5 {[%emt 0:0:24]
} 10. Bf3 {[%emt 0:0:43]} Nd5 {[%emt 0:1:16]} 11. Qxc4 {[%emt 0:2:16]
} Ba6 {[%emt 0:0:40]} 12. Qe4 {[%emt 0:1:16]} Nd7 {[%emt 0:0:0]} 13. Rd1 {[%emt 0:4:55]} Bf6 {[%emt 0:2:21]} 14. Nd2 {[%emt 0:0:53]} c5 {[%emt 0:2:50]} 15. Kf1 {[%emt 0:3:48]} c4 {[%emt 0:3:10]} 16. Qc2 {[%emt 0:0:0]} Rc8 {[%emt 0:1:19]} 17. Ne4 {[%emt 0:0:40]} Be7 {[%emt 0:0:24]} 18. Bf4 {[%emt 0:0:49]} Qf5 {[%emt 0:1:12]} 19. Qa4 {[%emt 0:0:47]} g5 {[%emt 0:0:0]} 20. Qxa6 {[%emt 0:0:28]} Rd8 {[%emt 0:0:24]} 21. Bd6 {[%emt 0:0:31]} g4 {[%emt 0:0:37]} 22. Bxg4 {[%emt 0:0:38]} Qxe4 {[%emt 0:0:41]} 23. Bf3 {[%emt 0:0:27]
} Qf5 {[%emt 0:0:28]} 24. Bxe7 {[%emt 0:0:23]} Nxe7 {[%emt 0:0:0]} 25. Qxc4 {[%emt 0:0:27]} Rc8 {[%emt 0:0:24]} 26. Qb4 {[%emt 0:0:46]} Nc5 {[%emt 0:0:31]} 27. Rac1 {[%emt 0:0:24]} e5 {[%emt 0:0:24]} 28. Bg4 {[%emt 0:0:28]
} 1-0

[Event "RUS-ch Rapid Women 2021"]
[White "Chernyak,Viktoria"]
[Black "Gvanceladze,Anna"]
[Site "Sochi"]
[Round "3.2"]
[Annotator "NA"]
[Result "1/2-1/2"]
[Date "2021.10.12"]
[WhiteElo "2285"]
[BlackElo "2196"]
[PlyCount "182"]
[TimeControl "5400+30"]

1. Nf3 {[%emt 1:15:42]} d5 {[%emt 1:15:41]} 2. e3 {[%emt 0:0:21]} c6 {[%emt 0:0:0]} 3. c4 {[%emt 0:0:22]} Nf6 {[%emt 0:0:23]} 4. Nc3 {[%emt 0:0:39]} g6 {[%emt 0:0:34]} 5. b3 {[%emt 0:1:4]} Bg7 {[%emt 0:0:23]} 6. Bb2 {[%emt 0:0:0]} 0-0 {[%emt 0:0:23]} 7. Be2 {[%emt 0:0:39]} Bf5 {[%emt 0:0:40]} 8. 0-0 {[%emt 0:0:42]} Ne4 {[%emt 0:1:16]} 9. Nd4 {[%emt 0:2:41]} Nxc3 {[%emt 0:2:31]
} 10. Bxc3 {[%emt 0:0:54]} Bd7 {[%emt 0:0:59]} 11. Nf3 {[%emt 0:1:29]
} Bg4 {[%emt 0:1:3]} 12. Bxg7 {[%emt 0:1:1]} Kxg7 {[%emt 0:0:0]} 13. h3 {[%emt 0:0:24]} Bxf3 {[%emt 0:0:23]} 14. Bxf3 {[%emt 0:0:22]} e6 {[%emt 0:0:23]} 15. d4 {[%emt 0:1:11]} Nd7 {[%emt 0:0:52]} 16. Qc2 {[%emt 0:0:53]
} Nf6 {[%emt 0:0:33]} 17. Rfe1 {[%emt 0:0:28]} Re8 {[%emt 0:0:0]} 18. Rad1 {[%emt 0:0:22]} Qa5 {[%emt 0:0:51]} 19. g3 {[%emt 0:0:32]} Rad8 {[%emt 0:0:26]} 20. Bg2 {[%emt 0:0:37]} h5 {[%emt 0:0:48]} 21. Rb1 {[%emt 0:3:5]
} Qb4 {[%emt 0:1:47]} 22. Red1 {[%emt 0:1:15]} Rd7 {[%emt 0:0:0]} 23. a3 {[%emt 0:1:30]} Qe7 {[%emt 0:1:19]} 24. b4 {[%emt 0:0:33]} a6 {[%emt 0:1:7]
} 25. a4 {[%emt 0:0:32]} Rc7 {[%emt 0:1:4]} 26. Rdc1 {[%emt 0:0:0]} Rec8 {[%emt 0:0:23]} 27. Qd3 {[%emt 0:1:0]} Qd8 {[%emt 0:1:7]} 28. Rb2 {[%emt 0:0:50]} Qd6 {[%emt 0:1:6]} 29. c5 {[%emt 0:1:17]} Qd8 {[%emt 0:0:0]} 30. Rcb1 {[%emt 0:0:32]} Ra8 {[%emt 0:0:32]} 31. b5 {[%emt 0:0:23]} axb5 {[%emt 0:0:28]} 32. axb5 {[%emt 0:0:21]} Ra4 {[%emt 0:1:11]} 33. Qd1 {[%emt 0:0:44]
} Qa8 {[%emt 0:0:36]} 34. Bf3 {[%emt 0:0:43]} Qa5 {[%emt 0:0:0]} 35. Qb3 {[%emt 0:1:31]} Ra3 {[%emt 0:2:30]} 36. Qc2 {[%emt 0:0:56]} Rc8 {[%emt 0:1:9]} 37. Kg2 {[%emt 0:0:33]} Qa4 {[%emt 0:1:20]} 38. Qxa4 {[%emt 0:0:49]
} Rxa4 {[%emt 0:0:0]} 39. g4 {[%emt 0:0:26]} hxg4 {[%emt 0:0:0]} 40. hxg4 {[%emt 0:0:21]} g5 {[%emt 0:0:25]} 41. bxc6 {[%emt 0:0:40]} bxc6 {[%emt 0:0:21]} 42. Rb7 {[%emt 0:0:20]} Ra2 {[%emt 0:0:56]} 43. R1b6 {[%emt 0:1:9]
} Kg6 {[%emt 0:0:29]} 44. Re7 {[%emt 0:0:30]} Rd2 {[%emt 0:0:0]} 45. Rbb7 {[%emt 0:0:27]} Ra8 {[%emt 0:0:43]} 46. Ra7 {[%emt 0:0:48]} Ra2 {[%emt 0:0:35]} 47. Rac7 {[%emt 0:0:57]} Rd2 {[%emt 0:0:24]} 48. Ra7 {[%emt 0:0:30]
} Ra2 {[%emt 0:0:19]} 49. Rxa8 {[%emt 0:0:34]} Rxa8 {[%emt 0:0:0]} 50. Rc7 {[%emt 0:0:37]} Ra6 {[%emt 0:0:52]} 51. Kg3 {[%emt 0:0:30]} Ne4+ {[%emt 0:0:25]} 52. Kg2 {[%emt 0:0:33]} Kf6 {[%emt 0:0:25]} 53. Bxe4 {[%emt 0:0:33]
} dxe4 {[%emt 0:0:21]} 54. Kg3 {[%emt 0:0:25]} e5 {[%emt 0:0:0]} 55. Rd7 {[%emt 0:0:28]} exd4 {[%emt 0:0:27]} 56. Rxd4 {[%emt 0:0:24]} Ke5 {[%emt 0:0:28]} 57. Rd6 {[%emt 0:0:26]} f6 {[%emt 0:0:40]} 58. Kg2 {[%emt 0:0:25]
} f5 {[%emt 0:0:24]} 59. Rg6 {[%emt 0:0:35]} fxg4 {[%emt 0:0:0]} 60. Rxg5+ {[%emt 0:0:22]} Kf6 {[%emt 0:0:24]} 61. Rxg4 {[%emt 0:0:21]} Kf5 {[%emt 0:0:21]} 62. Rf4+ {[%emt 0:0:27]} Ke5 {[%emt 0:0:20]} 63. Rh4 {[%emt 0:0:22]
} Ra5 {[%emt 0:0:26]} 64. Rh5+ {[%emt 0:0:22]} Ke6 {[%emt 0:0:0]} 65. Kg3 {[%emt 0:0:20]} Ra2 {[%emt 0:0:23]} 66. Rh2 {[%emt 0:0:50]} Rc2 {[%emt 0:0:31]} 67. Kf4 {[%emt 0:0:21]} Kd5 {[%emt 0:0:41]} 68. Rg2 {[%emt 0:0:37]
} Re2 {[%emt 0:0:36]} 69. Rg5+ {[%emt 0:0:32]} Kc4 {[%emt 0:0:0]} 70. Kg3 {[%emt 0:0:33]} Rc2 {[%emt 0:0:30]} 71. Re5 {[%emt 0:1:3]} Kd3 {[%emt 0:0:24]} 72. Kg2 {[%emt 0:0:24]} Rc4 {[%emt 0:0:35]} 73. Kg3 {[%emt 0:0:31]
} Rc2 {[%emt 0:0:23]} 74. Rf5 {[%emt 0:0:23]} Kc4 {[%emt 0:0:0]} 75. Kg4 {[%emt 0:0:29]} Kb5 {[%emt 0:0:55]} 76. f3 {[%emt 0:0:50]} exf3 {[%emt 0:0:32]} 77. Kxf3 {[%emt 0:0:23]} Rxc5 {[%emt 0:0:24]} 78. e4 {[%emt 0:0:22]
} Kb6 {[%emt 0:0:50]} 79. Rf8 {[%emt 0:0:28]} Kc7 {[%emt 0:0:0]} 80. Kf4 {[%emt 0:0:24]} Kd7 {[%emt 0:0:24]} 81. Rh8 {[%emt 0:0:29]} Ke7 {[%emt 0:0:25]} 82. Rh7+ {[%emt 0:0:30]} Ke6 {[%emt 0:0:21]} 83. Rh6+ {[%emt 0:0:22]
} Ke7 {[%emt 0:0:21]} 84. e5 {[%emt 0:0:31]} Rc1 {[%emt 0:0:0]} 85. Kf5 {[%emt 0:0:26]} Rf1+ {[%emt 0:0:21]} 86. Ke4 {[%emt 0:0:21]} Rc1 {[%emt 0:0:23]} 87. Kd4 {[%emt 0:0:26]} Rc2 {[%emt 0:0:29]} 88. Rh7+ {[%emt 0:0:26]
} Ke6 {[%emt 0:0:20]} 89. Rh6+ {[%emt 0:0:20]} Ke7 {[%emt 0:0:0]} 90. Rh7+ {[%emt 0:0:21]} Ke6 {[%emt 0:0:21]} 91. Rh6+ {[%emt 0:0:21]} Ke7 {[%emt 0:0:21]} 1/2-1/2

[Event "RUS-ch Rapid Women 2021"]
[White "Belenkaya,Dina"]
[Black "Borisova,Ekaterina"]
[Site "Sochi"]
[Round "3.3"]
[Annotator "NA"]
[Result "1/2-1/2"]
[Date "2021.10.12"]
[WhiteElo "2277"]
[BlackElo "2250"]
[PlyCount "86"]
[TimeControl "5400+30"]

1. Nf3 {[%emt 1:15:41]} Nf6 {[%emt 1:15:42]} 2. g3 {[%emt 0:0:23]} g6 {[%emt 0:0:25]
} 3. Bg2 {[%emt 0:0:22]} Bg7 {[%emt 0:0:21]} 4. 0-0 {[%emt 0:0:0]} 0-0 {[%emt 0:0:22]} 5. d3 {[%emt 0:0:21]} d5 {[%emt 0:0:26]} 6. Nbd2 {[%emt 0:1:54]} c5 {[%emt 0:0:21]} 7. e4 {[%emt 0:0:51]} Nc6 {[%emt 0:0:22]
} 8. Re1 {[%emt 0:0:44]} e5 {[%emt 0:1:0]} 9. exd5 {[%emt 0:0:32]} Nxd5 {[%emt 0:0:23]
} 10. Nc4 {[%emt 0:0:40]} Re8 {[%emt 0:0:20]} 11. a4 {[%emt 0:0:0]} h6 {[%emt 0:0:27]} 12. a5 {[%emt 0:1:42]} Rb8 {[%emt 0:0:27]} 13. Nfd2 {[%emt 0:0:49]} b5 {[%emt 0:1:42]} 14. axb6 {[%emt 0:0:24]} axb6 {[%emt 0:0:22]
} 15. Ne4 {[%emt 0:0:52]} Be6 {[%emt 0:0:38]} 16. c3 {[%emt 0:0:0]} Qd7 {[%emt 0:1:19]} 17. Qc2 {[%emt 0:0:48]} f5 {[%emt 0:0:34]} 18. Ned6 {[%emt 0:1:1]} Rf8 {[%emt 0:0:39]} 19. Nb5 {[%emt 0:1:4]} Kh7 {[%emt 0:4:13]
} 20. f4 {[%emt 0:1:43]} exf4 {[%emt 0:1:26]} 21. gxf4 {[%emt 0:0:43]
} Bg8 {[%emt 0:1:6]} 22. Ncd6 {[%emt 0:2:9]} Rf6 {[%emt 0:0:0]} 23. Nc4 {[%emt 0:0:42]} Re6 {[%emt 0:3:34]} 24. Bd2 {[%emt 0:0:58]} Rxe1+ {[%emt 0:0:31]} 25. Rxe1 {[%emt 0:0:24]} Nce7 {[%emt 0:2:3]} 26. Ncd6 {[%emt 0:3:34]} Nc7 {[%emt 0:0:22]} 27. Nxc7 {[%emt 0:1:30]} Qxd6 {[%emt 0:0:0]} 28. Nb5 {[%emt 0:0:30]} Qd7 {[%emt 0:0:23]} 29. c4 {[%emt 0:0:32]} Nc6 {[%emt 0:0:33]} 30. Bxc6 {[%emt 0:0:58]} Qxc6 {[%emt 0:0:22]} 31. Bc3 {[%emt 0:0:37]
} Rb7 {[%emt 0:1:9]} 32. Qe2 {[%emt 0:0:30]} g5 {[%emt 0:0:0]} 33. Qg2 {[%emt 0:1:0]} Qxg2+ {[%emt 0:0:29]} 34. Kxg2 {[%emt 0:0:22]} Rd7 {[%emt 0:0:23]} 35. Re3 {[%emt 0:0:34]} Kg6 {[%emt 0:1:31]} 36. Kf3 {[%emt 0:0:20]
} Bxc3 {[%emt 0:0:58]} 37. bxc3 {[%emt 0:0:30]} Bf7 {[%emt 0:0:0]} 38. Kg3 {[%emt 0:0:32]} Kf6 {[%emt 0:0:28]} 39. h4 {[%emt 0:0:26]} gxf4+ {[%emt 0:0:31]} 40. Kxf4 {[%emt 0:0:22]} Be6 {[%emt 0:0:22]} 41. Rg3 {[%emt 0:0:24]
} Bf7 {[%emt 0:0:36]} 42. Re3 {[%emt 0:0:21]} Be6 {[%emt 0:0:0]} 43. Rg3 {[%emt 0:0:22]} Bf7 {[%emt 0:0:22]} 1/2-1/2

[Event "RUS-ch Rapid Women 2021"]
[White "Diakonova,Ekaterina"]
[Black "Shafigullina,Zarina"]
[Site "Sochi"]
[Round "3.4"]
[Annotator "NA"]
[Result "0-1"]
[Date "2021.10.12"]
[WhiteElo "2157"]
[BlackElo "2204"]
[PlyCount "104"]
[TimeControl "5400+30"]

1. d4 {[%emt 1:15:40]} Nf6 {[%emt 1:15:41]} 2. Bf4 {[%emt 0:0:22]} d5 {[%emt 0:0:34]
} 3. e3 {[%emt 0:0:21]} c5 {[%emt 0:0:24]} 4. dxc5 {[%emt 0:0:0]} Nc6 {[%emt 0:0:34]} 5. Bb5 {[%emt 0:0:22]} e6 {[%emt 0:0:54]} 6. b4 {[%emt 0:0:42]
} a5 {[%emt 0:0:48]} 7. c3 {[%emt 0:3:18]} Bd7 {[%emt 0:1:54]} 8. Bxc6 {[%emt 0:0:44]} Bxc6 {[%emt 0:0:22]} 9. a4 {[%emt 0:2:54]} d4 {[%emt 0:2:12]
} 10. f3 {[%emt 0:4:0]} dxc3 {[%emt 0:0:59]} 11. b5 {[%emt 0:0:0]} Qxd1+ {[%emt 0:3:44]} 12. Kxd1 {[%emt 0:0:21]} Bd5 {[%emt 0:0:21]} 13. Nxc3 {[%emt 0:1:14]} Bxc5 {[%emt 0:0:24]} 14. Nge2 {[%emt 0:1:30]} Rc8 {[%emt 0:1:36]
} 15. Kc2 {[%emt 0:1:7]} Bc4 {[%emt 0:0:50]} 16. Kb2 {[%emt 0:0:0]} Bxe2 {[%emt 0:1:17]} 17. Nxe2 {[%emt 0:0:25]} Nd5 {[%emt 0:0:21]} 18. Rac1 {[%emt 0:0:50]} 0-0 {[%emt 0:1:32]} 19. Rxc5 {[%emt 0:1:49]} Rxc5 {[%emt 0:0:20]
} 20. Bd6 {[%emt 0:0:21]} Rc4 {[%emt 0:0:29]} 21. Bxf8 {[%emt 0:0:23]
} Kxf8 {[%emt 0:0:28]} 22. e4 {[%emt 0:0:36]} Rb4+ {[%emt 0:0:0]} 23. Ka3 {[%emt 0:0:28]} Nb6 {[%emt 0:0:42]} 24. Nc3 {[%emt 0:0:43]} Nc4+ {[%emt 0:0:21]} 25. Ka2 {[%emt 0:0:21]} Rb2+ {[%emt 0:0:32]} 26. Ka1 {[%emt 0:0:20]
} Rxg2 {[%emt 0:0:58]} 27. Rc1 {[%emt 0:0:22]} Nd2 {[%emt 0:0:0]} 28. Rd1 {[%emt 0:0:20]} Rxh2 {[%emt 0:0:27]} 29. f4 {[%emt 0:0:22]} h5 {[%emt 0:0:24]} 30. b6 {[%emt 0:0:27]} g6 {[%emt 0:0:46]} 31. e5 {[%emt 0:0:0]} h4 {[%emt 0:0:22]} 32. Nb5 {[%emt 0:0:20]} h3 {[%emt 0:0:31]} 33. Nd6 {[%emt 0:0:22]} Nb3+ {[%emt 0:0:34]} 34. Kb1 {[%emt 0:0:21]} Nc5 {[%emt 0:0:28]
} 35. Rc1 {[%emt 0:0:27]} Nxa4 {[%emt 0:0:26]} 36. Rc8+ {[%emt 0:0:32]
} Kg7 {[%emt 0:0:24]} 37. Ne8+ {[%emt 0:0:22]} Kh6 {[%emt 0:0:0]} 38. Nf6 {[%emt 0:0:26]} Rh1+ {[%emt 0:1:9]} 39. Kc2 {[%emt 0:3:0]} g5 {[%emt 0:0:21]} 40. Rg8 {[%emt 0:0:22]} Rg1 {[%emt 0:0:49]} 41. f5 {[%emt 0:0:0]} Rg2+ {[%emt 0:1:40]} 42. Kb3 {[%emt 0:0:34]} g4 {[%emt 0:0:23]} 43. Nxg4+ {[%emt 0:0:53]} Kh5 {[%emt 0:0:25]} 44. Nf6+ {[%emt 0:0:21]} Kh4 {[%emt 0:0:19]
} 45. Rh8+ {[%emt 0:0:27]} Kg3 {[%emt 0:0:30]} 46. Kxa4 {[%emt 0:0:29]
} exf5 {[%emt 0:0:34]} 47. Nd5 {[%emt 0:0:45]} h2 {[%emt 0:0:0]} 48. Rg8+ {[%emt 0:0:26]} Kf3 {[%emt 0:0:44]} 49. Rh8 {[%emt 0:0:20]} Kg3 {[%emt 0:0:33]} 50. Rg8+ {[%emt 0:0:21]} Kf2 {[%emt 0:0:27]} 51. Rh8 {[%emt 0:0:31]
} Kg1 {[%emt 0:0:26]} 52. Ne3 {[%emt 0:0:26]} h1=Q {[%emt 0:0:0]} 0-1